fUSD/lending_fUSD_20241006
["ID","MTS","AMOUNT","RATE_DAILY","PERIOD"]
[339965252,1728233442692,-150.57,0.00032584,2]
[339965253,1728233442702,-1588.57018895,0.000327,15]
[339965254,1728233442711,-356.21487475,0.00032739,2]
[339965255,1728233442720,-209.837,0.000328,2]
[339965256,1728233442730,-5000.0,0.000329,2]
[339965257,1728233442739,-500.0,0.00032976,7]
[339965258,1728233442749,-520.98905818,0.00032976,7]
[339965259,1728233442759,-26782.8070388,0.00032977,5]
[339965260,1728233442768,-19777.8630069,0.00032977,5]
[339965261,1728233442778,-309070.48719773,0.00032978,32]
[339965262,1728233442787,-133914.035194,0.00032979,5]
[339965263,1728233442796,-158222.904055,0.00032979,5]
[339965264,1728233442805,-69222.520524,0.00032979,5]
[339965265,1728233442814,-9888.93150343,0.0003298,5]
[339965266,1728233442823,-217.0,0.00032987,2]
[339965267,1728233442832,-8104.5136,0.00032997,2]
[339965268,1728233442841,-65211.9045,0.00032997,2]
[339965269,1728233442851,-50000.0,0.00033,23]
[339965270,1728233442861,-23224.78547997,0.00033,33]
[339965282,1728233516318,250.0,0.00011,2]
[339965283,1728233517455,300.0,0.00013,2]
[339965284,1728233518542,350.0,0.00015,2]
[339965285,1728233519654,400.0,0.00017,2]
[339965286,1728233588757,168.03,0.00010959,2]
[339965287,1728233711957,4588.391,0.00018264,2]
[339965288,1728234079620,151.69,0.00010959,2]
[339965294,1728234631915,-151.69,0.00024962,2]
[339965295,1728234631924,-212.77,0.00029238,2]
[339965296,1728234631933,-336.8029,0.00030272,2]
[339965297,1728234631942,-150.57,0.00030747,2]
[339965298,1728234631952,-640.16018069,0.00030794,2]
[339965299,1728234631963,-675.29840181,0.00030794,2]
[339965300,1728234632000,-1435.5414175,0.00030794,2]
[339965301,1728234632010,-196.74,0.00030841,2]
[339965302,1728234632019,-200.0,0.00030851,2]
[339965303,1728234632028,-588.81758324,0.00030964,2]
[339965315,1728234637869,-411.18241676,0.00030964,2]
[339965316,1728234637878,-741.85,0.00031025,30]
[339965317,1728234637887,-100.31758324,0.00031027,120]
[339965318,1728234638081,-232.73241676,0.00031027,120]
[339965319,1728234638091,-1000.0,0.00031221,2]
[339965320,1728234638101,-499.99,0.00031221,2]
[339965321,1728234638110,-9828.91,0.00031236,2]
[339965322,1728234638120,-452.35,0.00031261,2]
[339965323,1728234638129,-250.0,0.00031391,2]
[339965324,1728234638138,-160.89,0.00031429,2]
[339965325,1728234638148,-250.0,0.0003145,2]
[339965326,1728234638159,-212.77,0.00031502,2]
[339965327,1728234638168,-500.0,0.00031673,2]
[339965328,1728234638177,-1270.85615116,0.0003169,15]
[339965329,1728234638187,-11150.16079812,0.00031773,2]
[339965331,1728234638202,-903.41659053,0.00031773,2]
[339965387,1728234640075,-3022.03578618,0.00031773,2]
[339965388,1728234640087,-800.54295354,0.00031773,2]
[339965812,1728234644924,161.71,0.00010959,2]
[339965914,1728234940324,3766.0,0.00015,2]
[339965915,1728234941005,3389.0,0.00015,2]
[339965916,1728235322412,250.0,0.00011,2]
[339965917,1728235323497,300.0,0.00013,2]
[339965918,1728235642566,162.72,0.00010959,2]
[339965944,1728235832027,-354.88,0.000199,3]
[339965945,1728235832039,-4279.94172069,0.000199,3]
[339965946,1728235832048,-558.0,0.00020352,2]
[339965947,1728235832057,-623.581,0.00020352,2]
[339965948,1728235832066,-2037.47,0.00020352,2]
[339965949,1728235832076,-3350.0,0.00020352,2]
[339965950,1728235832085,-1910.0,0.00020352,2]
[339965951,1728235832094,-806.0,0.00020352,2]
[339965952,1728235832104,-426.424,0.00020352,2]
[339965953,1728235832113,-449.0,0.00020352,2]
[339965954,1728235832123,-150.0,0.00020352,2]
[339965955,1728235832132,-268.035,0.00020352,2]
[339965956,1728235832142,-1296.0,0.00020352,2]
[339965957,1728235832153,-2101.9449225,0.00022,3]
[339965958,1728235832162,-4322.22616762,0.00025,7]
[339965959,1728235832171,-224.0,0.00028567,2]
[339965960,1728235832180,-250.0,0.00030279,2]
[339965970,1728235832315,-2751.0,0.0003029,2]
[339965972,1728235832328,-499.99,0.0003029,2]
[339965974,1728235832340,-15196.57059269,0.00030354,2]
[339965983,1728235838038,-626.0,0.00020352,2]
[339965984,1728235838049,-1474.92790881,0.00030354,2]
[339965985,1728235838062,-7228.5014985,0.00030354,2]
[339965986,1728235838072,-200.0,0.00030364,2]
[339965987,1728235838082,-150.53,0.00030368,2]
[339965988,1728235838091,-277.54,0.00030418,120]
[339965989,1728235838101,-800.0,0.00030485,2]
[339965990,1728235838111,-250.0,0.00030489,2]
[339965991,1728235838120,-1000.0,0.0003052,2]
[339965992,1728235838130,-183.83,0.0003052,2]
[339965993,1728235838139,-316.44,0.00030582,2]
[339965994,1728235838148,-324.34,0.00030632,2]
[339965995,1728235838158,-250.0,0.00030648,2]
[339965996,1728235838167,-722.52,0.00030771,30]
[339965997,1728235838177,-224.0,0.00030831,2]
[339965998,1728235838186,-175.46,0.00030996,120]
[339965999,1728235838196,-200.0,0.00031024,2]
[339966000,1728235838205,-1017.484634,0.000315,2]
[339966001,1728235838215,-167.8,0.00031531,2]
[339966002,1728235838225,-167.8,0.00031562,2]
[339966003,1728235838235,-167.8,0.00031594,2]
[339966004,1728235838245,-167.8,0.00031625,2]
[339966005,1728235838255,-167.8,0.00031657,2]
[339966006,1728235838265,-167.8,0.00031688,2]
[339966007,1728235838275,-214.6472,0.0003169,2]
[339966008,1728235838285,-9475.23541562,0.0003178,2]
[339966009,1728235838294,-1000.0,0.000319,2]
[339966010,1728235838303,-1760.69396454,0.000319,2]
[339966011,1728235838319,-519.07829482,0.000319,2]
[339966012,1728235838333,-850.31100141,0.000319,2]
[339966013,1728235838349,-563.65192723,0.000319,2]
[339966014,1728235838361,-428.32049337,0.000319,2]
[339966015,1728235838373,-930.51620209,0.000319,2]
[339966016,1728235838386,-5808.32989986,0.000319,2]
[339966017,1728235838399,-9758.78861668,0.000319,2]
[339966018,1728235838409,-22619.5146,0.000319,2]
[339966019,1728235838419,-5681.68085299,0.000319,2]
[339966020,1728235838430,-534.33506897,0.000319,2]
[339966021,1728235839240,668.0,0.00021999,120]
[339966024,1728235840229,-1817.6034822,0.000319,2]
[339966025,1728235840241,-509.81000004,0.000319,2]
[339966044,1728236178790,166.01,0.00010959,2]
[339966045,1728236451198,664.0,0.00015,2]
[339966046,1728236451730,631.0,0.00015,2]
[339966047,1728236929923,154.95,0.00010959,2]
[339966049,1728237032148,-427.53,0.00022442,2]
[339966050,1728237032263,-114.812,0.00022442,2]
[339966051,1728237032272,-1296.0,0.00022442,2]
[339966052,1728237032281,-301.578,0.00022442,2]
[339966053,1728237032316,-147.422,0.00022442,2]
[339966054,1728237032325,-891.72773622,0.00022442,2]
[339966055,1728237032336,-1013.27226378,0.00022442,2]
[339966056,1728237032345,-929.025,0.00022442,2]
[339966057,1728237032354,-185.761,0.00022442,2]
[339966058,1728237032365,-150.0,0.00022442,2]
[339966059,1728237032377,-409.67017164,0.00022442,2]
[339966062,1728237038142,-312.27156458,0.00022442,2]
[339966063,1728237038197,-427.05826378,0.00022442,2]
[339966064,1728237038209,-872.508,0.00022442,2]
[339966065,1728237038219,-500.0,0.000225,2]
[339966066,1728237038229,-500.0,0.0002387,2]
[339966067,1728237038240,-154.95,0.00024962,2]
[339966068,1728237038250,-244.2,0.00025442,2]
[339966069,1728237038260,-150.0,0.00028219,2]
[339966070,1728237038270,-252.35,0.00028235,2]
[339966071,1728237038279,-150.49,0.00029632,2]
[339966072,1728237038290,-2751.0,0.00029646,2]
[339966073,1728237038301,-250.0,0.0002968,2]
[339966074,1728237038311,-430.59,0.00029681,2]
[339966075,1728237038323,-250.0,0.00029709,2]
[339966076,1728237038335,-117.747424,0.00029786,2]
[339966077,1728237038348,-850.31100141,0.00029786,2]
[339966078,1728237038365,-31.94157459,0.00029786,2]
[339966079,1728237038376,-703.25,0.00029801,30]
[339966080,1728237038387,-250.0,0.0002991,2]
[339966081,1728237038397,-87.10874478,0.00029925,2]
[339966082,1728237038411,-96.72125522,0.00029925,2]
[339966083,1728237038424,-200.0,0.00030097,2]
[339966084,1728237038435,-499.99,0.00030097,2]
[339966085,1728237038446,-1905.00945262,0.00030123,2]
[339966099,1728237040401,-282.00614376,0.00030123,2]
[339966100,1728237040460,-294.45714825,0.00030123,2]
[339966141,1728237046166,-1095.50928986,0.00021993,2]
[339966142,1728237046176,-660.4502342,0.00030123,2]
[339966143,1728237046435,-872.508,0.00030123,2]
[339966144,1728237047688,200.0,0.00017,2]
[339966145,1728237125909,250.0,0.00011,2]
[339966146,1728237437410,161.71,0.00010959,2]
[339966148,1728238232368,-208.492,0.00022442,2]
[339966149,1728238232379,-268.48,0.00028116,2]
[339966150,1728238232388,-406.7514375,0.00029497,2]
[339966151,1728238232397,-250.0,0.00029696,2]
[339966152,1728238232406,-3736.14862282,0.0002976,2]
[339966153,1728238232418,-453.0,0.0002976,2]
[339966154,1728238232428,-5823.00804009,0.0002976,2]
[339966155,1728238232439,-479.84771151,0.0002976,2]
[339966156,1728238232485,-520.41993916,0.0002976,2]
[339966157,1728238232545,-300.3,0.0002976,2]
[339966158,1728238232604,-651.51981103,0.0002976,2]
[339966172,1728238238470,-250.0,0.0002976,2]
[339966175,1728238240560,-626.52,0.00029543,60]
[339966176,1728238240570,-3348.0392189,0.0002976,2]
[339966177,1728238240581,-1101.58619219,0.0002976,2]
[339966213,1728238241038,300.53375261,0.00019,2]
[339966524,1728238424658,700.0,0.00019,2]
[339966525,1728238551779,3051.0,0.00015,2]
[339966526,1728238552630,823.08068966,0.00015,2]
[339966527,1728238552655,1921.91931034,0.00015,2]
[339966528,1728238736475,162.72,0.00010959,2]
[339966531,1728239277839,38563.51401874,0.00011,2]
[339966532,1728239277864,48165.0,0.00011,2]
[339966533,1728239277889,50000.0,0.00011,2]
[339966534,1728239277914,35130.89976284,0.00011,2]
[339966535,1728239285018,1300.0,0.00013,4]
[339966574,1728239431497,-273.0,0.00019725,2]
[339966575,1728239431507,-283.19,0.00027348,2]
[339966576,1728239431515,-1372.71093522,0.00029078,2]
[339966578,1728239431524,-150.0,0.00029087,2]
[339966579,1728239431534,-45733.49413141,0.00029088,5]
[339966580,1728239431543,-754.75,0.000291,2]
[339966581,1728239431551,-426.25,0.000291,2]
[339966582,1728239431560,-754.75,0.000291,2]
[339966583,1728239431569,-753.22,0.000291,2]
[339966584,1728239431578,-219.6,0.00029119,2]
[339966585,1728239431587,-499.99,0.00029119,2]
[339966586,1728239431596,-1429.13,0.00029119,2]
[339966587,1728239431606,-150.43,0.00029169,2]
[339966588,1728239431615,-617.95,0.00029196,2]
[339966589,1728239431624,-398.91457474,0.00029248,2]
[339966590,1728239431634,-250.0,0.0002933,2]
[339966591,1728239431643,-2751.0,0.00029354,2]
[339966592,1728239431653,-1000.0,0.00029357,2]
[339966593,1728239431662,-250.0,0.00029361,2]
[339966594,1728239431671,-1000.0,0.00029362,2]
[339966595,1728239431679,-312.28,0.00029368,2]
[339966596,1728239431688,-250.0,0.00029369,2]
[339966597,1728239431697,-200.0,0.00029371,2]
[339966598,1728239431706,-170.91,0.0002938,2]
[339966599,1728239431715,-231.28,0.0002943,2]
[339966600,1728239431724,-698.55,0.00029473,30]
[339966601,1728239431733,-157.84,0.00029478,120]
[339966602,1728239431742,-398.91457474,0.00029576,2]
[339966603,1728239431751,-283.19,0.00029612,2]
[339966604,1728239431759,-184.69,0.00029862,2]
[339966605,1728239431768,-925.6,0.00029879,2]
[339966606,1728239431777,-1000.0,0.0003,30]
[339966608,1728239431786,-184.69,0.00030012,2]
[339966610,1728239431795,-1000.0,0.00030122,60]
[339966612,1728239431804,-2000.0,0.00030123,2]
[339966614,1728239431813,-200.0,0.00030123,2]
[339966616,1728239431822,-534.16,0.00030178,2]
[339966617,1728239431831,-534.16,0.00030178,2]
[339966618,1728239431840,-534.16,0.00030178,2]
[339966619,1728239431849,-507.07,0.00030178,2]
[339966620,1728239431858,-291.7,0.00030202,2]
[339966621,1728239431867,-400.16,0.00030202,2]
[339966622,1728239431876,-200.92,0.00030202,2]
[339966623,1728239431885,-358.66,0.00030202,2]
[339966624,1728239431894,-151.96,0.00030202,2]
[339966625,1728239431903,-150.0,0.00030202,2]
[339966626,1728239431912,-150.0,0.00030202,2]
[339966627,1728239431921,-150.0,0.00030202,2]
[339966628,1728239431930,-150.0,0.00030202,2]
[339966629,1728239431938,-150.0,0.00030202,2]
[339966630,1728239431948,-150.0,0.00030202,2]
[339966631,1728239431957,-358.66,0.00030202,2]
[339966632,1728239431967,-150.0,0.00030202,2]
[339966633,1728239431976,-150.0,0.00030202,2]
[339966634,1728239431984,-150.0,0.00030202,2]
[339966635,1728239431993,-150.0,0.00030202,2]
[339966636,1728239432002,-150.0,0.00030202,2]
[339966637,1728239432011,-150.0,0.00030202,2]
[339966638,1728239432021,-358.66,0.00030202,2]
[339966639,1728239432030,-150.0,0.00030202,2]
[339966640,1728239432039,-150.0,0.00030202,2]
[339966641,1728239432048,-150.0,0.00030202,2]
[339966642,1728239432057,-150.0,0.00030202,2]
[339966643,1728239432066,-150.0,0.00030202,2]
[339966644,1728239432075,-358.66,0.00030202,2]
[339966645,1728239432083,-150.0,0.00030202,2]
[339966646,1728239432093,-150.0,0.00030202,2]
[339966647,1728239432103,-150.0,0.00030202,2]
[339966648,1728239432112,-150.0,0.00030202,2]
[339966649,1728239432121,-150.0,0.00030202,2]
[339966650,1728239432130,-150.0,0.00030202,2]
[339966651,1728239432139,-150.0,0.00030202,2]
[339966652,1728239432150,-300.0,0.00030202,2]
[339966653,1728239432162,-150.0,0.00030202,2]
[339966654,1728239432171,-358.66,0.00030202,2]
[339966655,1728239432182,-150.0,0.00030202,2]
[339966656,1728239432192,-150.0,0.00030202,2]
[339966657,1728239432201,-150.0,0.00030202,2]
[339966658,1728239432210,-358.66,0.00030202,2]
[339966659,1728239432219,-150.0,0.00030202,2]
[339966660,1728239432228,-150.0,0.00030202,2]
[339966661,1728239432237,-150.0,0.00030202,2]
[339966662,1728239432246,-300.0,0.00030202,2]
[339966663,1728239432255,-150.0,0.00030202,2]
[339966664,1728239432264,-150.0,0.00030202,2]
[339966665,1728239432274,-358.66,0.00030202,2]
[339966666,1728239432283,-150.0,0.00030202,2]
[339966667,1728239432291,-150.0,0.00030202,2]
[339966668,1728239432300,-358.66,0.00030202,2]
[339966669,1728239432310,-150.0,0.00030202,2]
[339966670,1728239432319,-150.0,0.00030202,2]
[339966671,1728239432329,-358.66,0.00030202,2]
[339966672,1728239432339,-151.0,0.00030202,7]
[339966673,1728239432348,-151.0,0.00030202,7]
[339966674,1728239432358,-208.896472,0.00030202,7]
[339966675,1728239432367,-180.40413,0.00030202,7]
[339966676,1728239432377,-151.0,0.00030202,7]
[339966677,1728239432386,-151.0,0.00030202,7]
[339966678,1728239432395,-444.390116,0.00030202,7]
[339966679,1728239432404,-444.390116,0.00030202,7]
[339966680,1728239432414,-151.0,0.00030202,7]
[339966681,1728239432423,-151.0,0.00030202,7]
[339966682,1728239432432,-184.048307,0.00030202,7]
[339966683,1728239432441,-151.0,0.00030202,7]
[339966684,1728239432450,-500.0,0.00030323,2]
[339966685,1728239432460,-167.0,0.00030505,2]
[339966686,1728239432469,-150.43,0.00030814,2]
[339966687,1728239432479,-205.94,0.00030817,2]
[339966688,1728239432488,-225.463887,0.00030825,7]
[339966689,1728239432497,-225.463887,0.00030825,7]
[339966690,1728239432507,-286.791607,0.00030825,7]
[339966691,1728239432516,-151.0,0.00030825,7]
[339966692,1728239432525,-151.0,0.00030825,7]
[339966693,1728239432534,-500.0,0.00030825,3]
[339966694,1728239432543,-169.17694995,0.00030825,3]
[339966695,1728239432552,-4017.4951,0.000309,2]
[339966696,1728239432562,-1461.4582,0.000309,2]
[339966697,1728239432571,-151.0,0.000309,7]
[339966698,1728239432580,-151.0,0.000309,7]
[339966699,1728239432589,-151.0,0.000309,7]
[339966700,1728239432598,-151.0,0.000309,7]
[339966701,1728239432607,-293.745585,0.000309,7]
[339966702,1728239432616,-151.0,0.000309,7]
[339966703,1728239432627,-253.763402,0.000309,7]
[339966704,1728239432635,-227.659331,0.000309,7]
[339966705,1728239432644,-444.390116,0.000309,7]
[339966706,1728239432654,-444.390116,0.000309,7]
[339966707,1728239432663,-175.9299,0.00030924,2]
[339966708,1728239432672,-1143.77053608,0.00030924,15]
[339966709,1728239432681,-20378.92971899,0.00031,21]
[339966765,1728239439653,-151.0,0.00030202,7]
[339966766,1728239439663,-151.0,0.00030202,7]
[339966767,1728239439672,-4178.6255,0.000309,2]
[339966768,1728239439682,-151.0,0.000309,7]
[339966769,1728239439691,-151.0,0.000309,7]
[339966770,1728239439700,-29621.07028101,0.00031,21]
[339966771,1728239439710,-151.0,0.00031,7]
[339966772,1728239439719,-151.0,0.00031,7]
[339966773,1728239439728,-151.0,0.00031,7]
[339966774,1728239439737,-199.143401,0.00031,7]
[339966775,1728239439746,-175.987837,0.00031,7]
[339966776,1728239439755,-175.987837,0.00031,7]
[339966777,1728239439764,-151.0,0.00031,7]
[339966778,1728239439774,-151.0,0.00031,7]
[339966779,1728239439783,-151.0,0.00031,7]
[339966780,1728239439792,-225.463887,0.00031,7]
[339966781,1728239439801,-225.463887,0.00031,7]
[339966782,1728239439811,-151.0,0.00031,7]
[339966783,1728239439822,-444.390116,0.00031,7]
[339966784,1728239439831,-444.390116,0.00031,7]
[339966785,1728239439840,-151.0,0.00031,7]
[339966786,1728239439850,-151.0,0.00031,7]
[339966787,1728239439860,-151.0,0.00031,7]
[339966788,1728239439870,-151.0,0.00031,7]
[339966789,1728239439881,-358.66,0.00031023,2]
[339966790,1728239439891,-358.66,0.00031023,2]
[339966791,1728239439900,-358.66,0.00031023,2]
[339966792,1728239439909,-358.66,0.00031023,2]
[339966793,1728239439919,-428.96,0.00031023,2]
[339966794,1728239439929,-428.96,0.00031023,2]
[339966795,1728239439938,-358.66,0.00031023,2]
[339966796,1728239439948,-428.96,0.00031023,2]
[339966797,1728239439958,-407.28,0.00031023,2]
[339966798,1728239439967,-428.96,0.00031023,2]
[339966799,1728239439976,-428.96,0.00031023,2]
[339966800,1728239439985,-715.0,0.00031023,2]
[339966801,1728239439994,-428.96,0.00031023,2]
[339966802,1728239440003,-428.96,0.00031023,2]
[339966803,1728239440013,-851.31,0.00031023,2]
[339966804,1728239440022,-428.96,0.00031023,2]
[339966805,1728239440032,-428.96,0.00031023,2]
[339966806,1728239440042,-200.0,0.00031024,2]
[339966807,1728239440052,-192.0,0.00031024,2]
[339966808,1728239440061,-151.0,0.00031024,7]
[339966809,1728239440072,-151.0,0.00031024,7]
[339966810,1728239440082,-151.0,0.00031024,7]
[339966811,1728239440092,-151.0,0.00031024,7]
[339966812,1728239440102,-151.0,0.00031024,7]
[339966813,1728239440111,-151.0,0.00031024,7]
[339966814,1728239440127,-151.0,0.00031024,7]
[339966815,1728239440137,-151.0,0.00031024,7]
[339966816,1728239440146,-151.0,0.00031024,7]
[339966817,1728239440156,-192.905431,0.00031024,7]
[339966818,1728239440166,-175.987837,0.00031024,7]
[339966819,1728239440175,-175.987837,0.00031024,7]
[339966820,1728239440185,-175.987837,0.00031024,7]
[339966821,1728239440194,-175.987837,0.00031024,7]
[339966822,1728239440206,-175.987837,0.00031024,7]
[339966823,1728239440216,-175.987837,0.00031024,7]
[339966824,1728239440225,-288.348518,0.00031024,7]
[339966825,1728239440235,-151.0,0.00031024,7]
[339966826,1728239440244,-223.006244,0.00031024,7]
[339966827,1728239440253,-273.353658,0.00031024,7]
[339966828,1728239440263,-225.463887,0.00031024,7]
[339966829,1728239440273,-225.463887,0.00031024,7]
[339966830,1728239440282,-225.463887,0.00031024,7]
[339966831,1728239440293,-225.463887,0.00031024,7]
[339966832,1728239440303,-225.463887,0.00031024,7]
[339966833,1728239440312,-225.463887,0.00031024,7]
[339966834,1728239440322,-151.0,0.00031024,7]
[339966835,1728239440331,-151.0,0.00031024,7]
[339966836,1728239440341,-444.390116,0.00031024,7]
[339966837,1728239440351,-444.390116,0.00031024,7]
[339966838,1728239440360,-444.390116,0.00031024,7]
[339966839,1728239440369,-444.390116,0.00031024,7]
[339966840,1728239440489,-151.0,0.00031024,7]
[339966841,1728239440500,-151.0,0.00031024,7]
[339966842,1728239440509,-151.0,0.00031024,7]
[339966843,1728239440519,-151.0,0.00031024,7]
[339966844,1728239440529,-151.0,0.00031024,7]
[339966845,1728239440538,-151.0,0.00031024,7]
[339966846,1728239440549,-150.0,0.00031027,2]
[339966847,1728239440559,-300.0,0.00031027,2]
[339966848,1728239440568,-150.0,0.00031027,2]
[339966849,1728239440577,-150.0,0.00031027,2]
[339966850,1728239440586,-150.0,0.00031027,2]
[339966851,1728239440596,-1101.49395539,0.00031262,2]
[339966852,1728239440605,-175.62303437,0.000314,2]
[339966853,1728239440614,-1000.0,0.000314,2]
[339966854,1728239440625,-151.0,0.00031412,7]
[339966855,1728239440634,-444.390116,0.00031412,7]
[339966856,1728239440643,-444.390116,0.00031412,7]
[339966857,1728239440652,-1636.9819,0.000315,2]
[339966858,1728239440661,-1422.4903,0.000315,2]
[339966859,1728239440671,-225.463887,0.000315,7]
[339966860,1728239440680,-225.463887,0.000315,7]
[339966861,1728239440689,-24442.03382242,0.000315,2]
[339966877,1728239861640,154.95,0.00010959,2]
[339966878,1728240062591,599.0,0.00015,2]
[339966879,1728240063214,569.0,0.00015,2]
[339966880,1728240431652,161.71,0.00010959,2]
[339966900,1728240631673,-300.0,0.00019725,2]
[339966901,1728240631683,-602.95368265,0.00021384,2]
[339966902,1728240631692,-420.0,0.00021484,2]
[339966903,1728240631701,-285.663,0.00026368,2]
[339966904,1728240631710,-164.0,0.00026368,2]
[339966905,1728240631719,-164.809,0.00026368,2]
[339966906,1728240631728,-151.779,0.00026368,2]
[339966907,1728240631738,-156.64,0.00026368,2]
[339966908,1728240631749,-288.319,0.00026368,2]
[339966909,1728240631759,-250.0,0.00026368,2]
[339966910,1728240631769,-287.91,0.00027543,2]
[339966911,1728240631778,-280.5225,0.00028863,2]
[339966912,1728240631790,-154.95,0.00028963,2]
[339966913,1728240631799,-200.0,0.0002904,2]
[339966914,1728240631810,-250.0,0.00029243,2]
[339966915,1728240631820,-160.72501109,0.00029299,2]
[339966916,1728240631834,-339.27498891,0.00029299,2]
[339966917,1728240631843,-110.72501109,0.00029299,2]
[339966918,1728240631855,-335.08950845,0.00029299,2]
[339966919,1728240631868,-276.52,0.00029299,2]
[339966920,1728240631881,-1356.90627036,0.00029299,2]
[339966921,1728240631897,-752.8607206,0.00029299,2]
[339966922,1728240631912,-579.913739,0.00029299,2]
[339966923,1728240631923,-271.96394405,0.00029299,2]
[339966924,1728240631937,-4277.03584135,0.00029299,2]
[339966925,1728240631951,-24544.0361609,0.00029299,2]
[339966926,1728240631962,-486.7763985,0.00029299,2]
[339966928,1728240631973,-12177.92299829,0.00029299,2]
[339966930,1728240631984,-432.000004,0.00029299,2]
[339966931,1728240631995,-2077.30520996,0.00029299,2]
[339966932,1728240632003,-150.0,0.00029368,2]
[339966933,1728240632012,-150.0,0.00029368,2]
[339966934,1728240632021,-150.0,0.00029368,2]
[339966935,1728240632030,-308.97,0.00029383,2]
[339966936,1728240632039,-150.4,0.00029401,2]
[339966937,1728240632050,-164.22,0.00029417,120]
[339966938,1728240632060,-250.0,0.00029515,2]
[339966939,1728240632072,-329.71,0.00029515,20]
[339966941,1728240632083,-499.99,0.00029515,2]
[339966942,1728240632091,-219.60994081,0.00029533,2]
[339966943,1728240632102,-580.39005919,0.00029533,2]
[339966944,1728240632112,-466.83,0.00029555,2]
[339966945,1728240632121,-900.00175661,0.00029581,2]
[339966946,1728240632134,-1850.99824339,0.00029581,2]
[339966947,1728240632145,-690.98,0.00029591,30]
[339966948,1728240632154,-250.0,0.0002961,2]
[339966949,1728240632164,-15.5897492,0.00029636,2]
[339966950,1728240632175,-3106.15268631,0.00029636,2]
[339966951,1728240632185,-250.0,0.00029636,2]
[339966952,1728240632197,-752.76793986,0.00029636,2]
[339966953,1728240632208,-846.08694448,0.00029636,2]
[339966954,1728240632219,-702.93574009,0.00029636,2]
[339966955,1728240632229,-806.59811442,0.00029636,2]
[339966956,1728240632240,-889.15149544,0.00029636,2]
[339966957,1728240632251,-2034.3771887,0.00029636,2]
[339966958,1728240632265,-974.3801415,0.00029636,2]
[339966959,1728240632276,-200.0,0.00029663,2]
[339966960,1728240632286,-192.73,0.00029688,2]
[339966961,1728240632296,-170.91,0.00029751,2]
[339966962,1728240632306,-423.5,0.0002979,2]
[339966963,1728240632315,-754.75,0.0002979,2]
[339966964,1728240632324,-423.5,0.0002979,2]
[339966965,1728240632333,-754.75,0.0002979,2]
[339966966,1728240632342,-754.75,0.0002979,2]
[339966967,1728240632352,-287.91,0.00029807,2]
[339966968,1728240632361,-754.75,0.00029941,2]
[339966969,1728240632371,-423.5,0.00029941,2]
[339966970,1728240632380,-75.00918831,0.00030202,2]
[339966971,1728240632399,-353.95081169,0.00030202,2]
[339966972,1728240632408,-851.98,0.00030202,2]
[339966973,1728240632417,-150.0,0.00030205,2]
[339966974,1728240632427,-150.0,0.00030205,2]
[339966975,1728240632437,-150.0,0.00030205,2]
[339966976,1728240632447,-150.0,0.00030205,2]
[339966977,1728240632458,-150.0,0.00030205,2]